[Event "Early-Titled-Tuesday-Blitz-May-28-2024"]
[Site "Chess.com"]
[Date "2024.05.28"]
[Round "7"]
[White "enriquebutti"]
[Black "MdChess1734"]
[Result "0-1"]
[WhiteElo "2101"]
[BlackElo "2412"]
[TimeControl "180+1"]
[EndTime "9:14:43 PDT"]
[Termination "MdChess1734 won by resignation"]

1. e4 {[%clk 0:02:59.5]} 1... c6 {[%clk 0:02:45.5]} 2. d4 {[%clk 0:02:58.7]}
2... d5 {[%clk 0:02:45.7]} 3. exd5 {[%clk 0:02:58.3]} 3... cxd5 {[%clk
0:02:46.3]} 4. c4 {[%clk 0:02:58.2]} 4... Nf6 {[%clk 0:02:45.3]} 5. Nc3 {[%clk
0:02:57.7]} 5... g6 {[%clk 0:02:43.5]} 6. cxd5 {[%clk 0:02:56.5]} 6... Bg7
{[%clk 0:02:43.8]} 7. Qb3 {[%clk 0:02:48.2]} 7... O-O {[%clk 0:02:42.8]} 8. Be2
{[%clk 0:02:47.5]} 8... Nbd7 {[%clk 0:02:42]} 9. Bf3 {[%clk 0:02:46.7]} 9... Nb6
{[%clk 0:02:22.6]} 10. Bf4 {[%clk 0:02:45.8]} 10... e6 {[%clk 0:01:51.9]} 11.
dxe6 {[%clk 0:02:36.5]} 11... Bxe6 {[%clk 0:01:50.8]} 12. Qd1 {[%clk 0:02:31.4]}
12... Nfd5 {[%clk 0:01:46.2]} 13. Be3 {[%clk 0:02:18.8]} 13... Nc4 {[%clk
0:01:42.1]} 14. Nxd5 {[%clk 0:02:12.3]} 14... Bxd5 {[%clk 0:01:42.1]} 15. b3
{[%clk 0:02:10.8]} 15... Nxe3 {[%clk 0:01:10.1]} 16. fxe3 {[%clk 0:02:10.2]}
16... Re8 {[%clk 0:01:10.6]} 17. Kf2 {[%clk 0:02:08.5]} 17... Bh6 {[%clk
0:01:08.3]} 0-1

[Event "Early-Titled-Tuesday-Blitz-May-28-2024"]
[Site "Chess.com"]
[Date "2024.05.28"]
[Round "7"]
[White "Kacparov"]
[Black "FairChess_on_YouTube"]
[Result "1/2-1/2"]
[WhiteElo "2949"]
[BlackElo "3094"]
[TimeControl "180+1"]
[EndTime "9:14:49 PDT"]
[Termination "Game drawn by repetition"]

1. e4 {[%clk 0:03:00.9]} 1... e5 {[%clk 0:02:57.9]} 2. Nf3 {[%clk 0:03:01.2]}
2... Nc6 {[%clk 0:02:58.2]} 3. Bc4 {[%clk 0:03:01.5]} 3... Bc5 {[%clk
0:02:57.3]} 4. c3 {[%clk 0:03:01.7]} 4... Nf6 {[%clk 0:02:57.2]} 5. d3 {[%clk
0:03:02.2]} 5... d6 {[%clk 0:02:56.5]} 6. Bb3 {[%clk 0:03:02.5]} 6... h6 {[%clk
0:02:55.5]} 7. h3 {[%clk 0:03:03]} 7... Bb6 {[%clk 0:02:55]} 8. Nbd2 {[%clk
0:03:03.4]} 8... Ne7 {[%clk 0:02:54]} 9. Nf1 {[%clk 0:03:01.9]} 9... Ng6 {[%clk
0:02:54]} 10. Ng3 {[%clk 0:03:02.3]} 10... O-O {[%clk 0:02:50.7]} 11. O-O {[%clk
0:03:01.1]} 11... d5 {[%clk 0:02:41.4]} 12. d4 {[%clk 0:02:51.3]} 12... Nxe4
{[%clk 0:02:32.1]} 13. Nxe4 {[%clk 0:02:48.5]} 13... dxe4 {[%clk 0:02:33]} 14.
Nxe5 {[%clk 0:02:48.4]} 14... Nxe5 {[%clk 0:02:32.6]} 15. dxe5 {[%clk
0:02:49.3]} 15... Qh4 {[%clk 0:02:25.4]} 16. Be3 {[%clk 0:01:45.1]} 16... Bxe3
{[%clk 0:01:38.6]} 17. fxe3 {[%clk 0:01:46]} 17... Bxh3 {[%clk 0:01:38.6]} 18.
gxh3 {[%clk 0:01:44.2]} 18... Qg3+ {[%clk 0:01:38.2]} 19. Kh1 {[%clk 0:01:44.7]}
19... Qxh3+ {[%clk 0:01:38.5]} 20. Kg1 {[%clk 0:01:45.3]} 20... Qg3+ {[%clk
0:01:37.2]} 21. Kh1 {[%clk 0:01:45.5]} 21... Qh3+ {[%clk 0:01:29.2]} 22. Kg1
{[%clk 0:01:45.9]} 22... Qg3+ {[%clk 0:01:24.1]} 23. Kh1 {[%clk 0:01:46.1]}
23... Qh3+ {[%clk 0:01:24.3]} 1/2-1/2

[Event "Early-Titled-Tuesday-Blitz-May-28-2024"]
[Site "Chess.com"]
[Date "2024.05.28"]
[Round "7"]
[White "JanMur7"]
[Black "Fernando_Offermann"]
[Result "0-1"]
[WhiteElo "2276"]
[BlackElo "2481"]
[TimeControl "180+1"]
[EndTime "9:14:52 PDT"]
[Termination "Fernando_Offermann won by resignation"]

1. c4 {[%clk 0:03:00.9]} 1... g6 {[%clk 0:02:57.6]} 2. Nc3 {[%clk 0:02:59.9]}
2... Bg7 {[%clk 0:02:57.6]} 3. d4 {[%clk 0:03:00]} 3... Nf6 {[%clk 0:02:57]} 4.
e4 {[%clk 0:03:00.3]} 4... O-O {[%clk 0:02:56.7]} 5. Be2 {[%clk 0:02:59.9]} 5...
d6 {[%clk 0:02:56.5]} 6. Bg5 {[%clk 0:02:59.7]} 6... h6 {[%clk 0:02:49.9]} 7.
Be3 {[%clk 0:02:59.3]} 7... e5 {[%clk 0:02:47.6]} 8. d5 {[%clk 0:02:59]} 8...
Na6 {[%clk 0:02:47.8]} 9. g4 {[%clk 0:02:57.5]} 9... Nc5 {[%clk 0:02:47.2]} 10.
f3 {[%clk 0:02:57.8]} 10... h5 {[%clk 0:02:46.9]} 11. g5 {[%clk 0:02:53.4]}
11... Nh7 {[%clk 0:02:46.5]} 12. h4 {[%clk 0:02:49.6]} 12... f6 {[%clk
0:02:46.6]} 13. gxf6 {[%clk 0:02:47.5]} 13... Bxf6 {[%clk 0:02:41.4]} 14. Bf2
{[%clk 0:02:44.6]} 14... a5 {[%clk 0:02:35]} 15. Qd2 {[%clk 0:02:25.4]} 15...
Kh8 {[%clk 0:02:32.9]} 16. O-O-O {[%clk 0:02:13.4]} 16... a4 {[%clk 0:02:31.8]}
17. Nh3 {[%clk 0:02:11.8]} 17... Bxh4 {[%clk 0:02:27.4]} 18. Bxh4 {[%clk
0:02:07.5]} 18... Qxh4 {[%clk 0:02:27.3]} 19. Rdg1 {[%clk 0:02:08]} 19... Qf6
{[%clk 0:02:27]} 20. Qh6 {[%clk 0:01:59.8]} 20... Rg8 {[%clk 0:02:26.2]} 21. Nb5
{[%clk 0:01:50.7]} 21... Rg7 {[%clk 0:02:23.1]} 22. Ng5 {[%clk 0:01:38.2]} 22...
Qf4+ {[%clk 0:02:09.4]} 23. Kc2 {[%clk 0:01:32]} 23... Bd7 {[%clk 0:02:06.8]}
24. Nxh7 {[%clk 0:01:10.3]} 24... Qxh6 {[%clk 0:02:05.2]} 0-1

[Event "Early-Titled-Tuesday-Blitz-May-28-2024"]
[Site "Chess.com"]
[Date "2024.05.28"]
[Round "7"]
[White "jamesaltucher"]
[Black "maracayo"]
[Result "0-1"]
[WhiteElo "2058"]
[BlackElo "2380"]
[TimeControl "180+1"]
[EndTime "9:15:03 PDT"]
[Termination "maracayo won by resignation"]

1. e4 {[%clk 0:03:00.9]} 1... d6 {[%clk 0:03:00.9]} 2. f4 {[%clk 0:02:59.9]}
2... Nf6 {[%clk 0:03:01]} 3. Nc3 {[%clk 0:03:00.3]} 3... c6 {[%clk 0:03:01.3]}
4. Nf3 {[%clk 0:02:59.2]} 4... Qa5 {[%clk 0:03:00.9]} 5. d3 {[%clk 0:02:57.5]}
5... e5 {[%clk 0:02:59.9]} 6. g3 {[%clk 0:02:55.6]} 6... Be7 {[%clk 0:02:59.3]}
7. Bg2 {[%clk 0:02:55.9]} 7... O-O {[%clk 0:02:59.1]} 8. O-O {[%clk 0:02:55.3]}
8... Re8 {[%clk 0:02:58.6]} 9. f5 {[%clk 0:02:51.5]} 9... Nbd7 {[%clk
0:02:48.5]} 10. h3 {[%clk 0:02:50.7]} 10... d5 {[%clk 0:02:46.7]} 11. g4 {[%clk
0:02:44.6]} 11... dxe4 {[%clk 0:02:46.1]} 12. dxe4 {[%clk 0:02:45.3]} 12... Nc5
{[%clk 0:02:43.2]} 13. Qe1 {[%clk 0:02:42.1]} 13... h6 {[%clk 0:02:39.4]} 14. a3
{[%clk 0:02:25.7]} 14... Qc7 {[%clk 0:02:36]} 15. b4 {[%clk 0:02:23.6]} 15...
Ncd7 {[%clk 0:02:35.5]} 16. Qg3 {[%clk 0:02:21]} 16... a5 {[%clk 0:02:34.4]} 17.
b5 {[%clk 0:02:12.4]} 17... cxb5 {[%clk 0:02:31.7]} 18. Ne2 {[%clk 0:01:56.5]}
18... Nxe4 {[%clk 0:02:30.6]} 19. Qe1 {[%clk 0:01:54.9]} 19... Qxc2 {[%clk
0:02:24.3]} 20. Be3 {[%clk 0:01:44.3]} 20... Bc5 {[%clk 0:02:21.6]} 21. Bxc5
{[%clk 0:01:31.8]} 21... Ndxc5 {[%clk 0:02:21.1]} 22. Kh2 {[%clk 0:01:32.7]}
22... Nd3 {[%clk 0:02:15.4]} 23. Qh4 {[%clk 0:01:21.4]} 23... Qxe2 {[%clk
0:02:13.7]} 24. Rae1 {[%clk 0:01:21.5]} 24... Nxe1 {[%clk 0:02:12.4]} 25. Rxe1
{[%clk 0:01:21.1]} 25... Qf2 {[%clk 0:02:11.3]} 26. Qh5 {[%clk 0:01:06.6]} 26...
Qg3+ {[%clk 0:02:07.9]} 27. Kg1 {[%clk 0:01:05.2]} 27... Nf6 {[%clk 0:02:04.5]}
0-1

[Event "Early-Titled-Tuesday-Blitz-May-28-2024"]
[Site "Chess.com"]
[Date "2024.05.28"]
[Round "7"]
[White "topce"]
[Black "Glidzhian_Gor"]
[Result "0-1"]
[WhiteElo "2407"]
[BlackElo "2558"]
[TimeControl "180+1"]
[EndTime "9:15:08 PDT"]
[Termination "Glidzhian_Gor won by checkmate"]

1. e4 {[%clk 0:02:59.9]} 1... e5 {[%clk 0:02:59.3]} 2. Nf3 {[%clk 0:02:58.1]}
2... Nc6 {[%clk 0:02:59.9]} 3. Nc3 {[%clk 0:02:58.2]} 3... Nf6 {[%clk
0:02:54.8]} 4. Bb5 {[%clk 0:02:57.8]} 4... Bc5 {[%clk 0:02:53.5]} 5. Bxc6 {[%clk
0:02:54.3]} 5... dxc6 {[%clk 0:02:53.7]} 6. d3 {[%clk 0:02:54.1]} 6... O-O
{[%clk 0:02:50.6]} 7. h3 {[%clk 0:02:50.2]} 7... h6 {[%clk 0:02:43.8]} 8. O-O
{[%clk 0:02:49.7]} 8... Qe7 {[%clk 0:02:42.2]} 9. Ne2 {[%clk 0:02:46.2]} 9...
Nh5 {[%clk 0:02:38.3]} 10. c3 {[%clk 0:02:41.3]} 10... Qf6 {[%clk 0:02:32.3]}
11. d4 {[%clk 0:02:34]} 11... exd4 {[%clk 0:02:26.7]} 12. cxd4 {[%clk
0:02:30.4]} 12... Bb6 {[%clk 0:02:25.4]} 13. g4 {[%clk 0:02:11.4]} 13... Qxf3
{[%clk 0:02:08.9]} 14. gxh5 {[%clk 0:02:08.2]} 14... Qxe4 {[%clk 0:01:54.5]} 15.
Ng3 {[%clk 0:01:57.1]} 15... Qxd4 {[%clk 0:01:53.9]} 16. Qf3 {[%clk 0:01:55.1]}
16... Bxh3 {[%clk 0:01:52.8]} 17. Be3 {[%clk 0:01:52.1]} 17... Qd5 {[%clk
0:01:50.9]} 18. Ne4 {[%clk 0:01:30.1]} 18... Bxf1 {[%clk 0:01:47.8]} 19. Rxf1
{[%clk 0:01:31]} 19... Rae8 {[%clk 0:01:47.3]} 20. Nf6+ {[%clk 0:01:19.1]} 20...
gxf6 {[%clk 0:01:47.3]} 21. Qg3+ {[%clk 0:01:18.8]} 21... Kh7 {[%clk 0:01:47.2]}
22. Bxh6 {[%clk 0:01:15.8]} 22... Rg8 {[%clk 0:01:41.2]} 23. Qxg8+ {[%clk
0:01:14.9]} 23... Rxg8+ {[%clk 0:01:41.1]} 24. Kh2 {[%clk 0:01:12.5]} 24... Qg2#
{[%clk 0:01:40.5]} 0-1

[Event "Early-Titled-Tuesday-Blitz-May-28-2024"]
[Site "Chess.com"]
[Date "2024.05.28"]
[Round "7"]
[White "linesman39"]
[Black "FischerKasparow"]
[Result "1-0"]
[WhiteElo "2290"]
[BlackElo "2101"]
[TimeControl "180+1"]
[EndTime "9:15:14 PDT"]
[Termination "linesman39 won by resignation"]

1. d4 {[%clk 0:03:00.9]} 1... Nf6 {[%clk 0:02:58.5]} 2. c4 {[%clk 0:03:00.1]}
2... c5 {[%clk 0:02:58.3]} 3. d5 {[%clk 0:02:58.8]} 3... b5 {[%clk 0:02:58.8]}
4. cxb5 {[%clk 0:02:57.8]} 4... a6 {[%clk 0:02:59.7]} 5. b6 {[%clk 0:02:56.9]}
5... Qxb6 {[%clk 0:02:58.1]} 6. Nc3 {[%clk 0:02:55.7]} 6... g6 {[%clk
0:02:58.3]} 7. e4 {[%clk 0:02:54.6]} 7... d6 {[%clk 0:02:57.6]} 8. Be2 {[%clk
0:02:50.8]} 8... Bg7 {[%clk 0:02:55.8]} 9. Nf3 {[%clk 0:02:45.3]} 9... O-O
{[%clk 0:02:54.3]} 10. O-O {[%clk 0:02:43.4]} 10... Bd7 {[%clk 0:02:51.8]} 11.
a4 {[%clk 0:02:41.2]} 11... Bg4 {[%clk 0:02:51.5]} 12. Nd2 {[%clk 0:02:40]}
12... Bxe2 {[%clk 0:02:48.8]} 13. Qxe2 {[%clk 0:02:40.9]} 13... Nbd7 {[%clk
0:02:48.1]} 14. a5 {[%clk 0:02:36.7]} 14... Qb4 {[%clk 0:02:46.2]} 15. Ra4
{[%clk 0:02:33.8]} 15... Qb7 {[%clk 0:02:45.7]} 16. f4 {[%clk 0:02:29.3]} 16...
Rab8 {[%clk 0:02:39.8]} 17. Kh1 {[%clk 0:02:25.4]} 17... Ne8 {[%clk 0:02:30.1]}
18. Nc4 {[%clk 0:02:19.1]} 18... Nc7 {[%clk 0:02:27.9]} 19. e5 {[%clk
0:01:20.4]} 19... dxe5 {[%clk 0:02:25.9]} 20. fxe5 {[%clk 0:01:09.6]} 20... Nxd5
{[%clk 0:02:24.3]} 21. e6 {[%clk 0:01:03.3]} 21... Nxc3 {[%clk 0:02:10.4]} 22.
bxc3 {[%clk 0:01:01.5]} 22... Nf6 {[%clk 0:02:07.2]} 23. Nb6 {[%clk 0:00:58.7]}
23... Qe4 {[%clk 0:02:00.4]} 24. Rxe4 {[%clk 0:00:56.6]} 1-0

[Event "Early-Titled-Tuesday-Blitz-May-28-2024"]
[Site "Chess.com"]
[Date "2024.05.28"]
[Round "7"]
[White "Sl4werThanYou"]
[Black "Masterbeaterr"]
[Result "1-0"]
[WhiteElo "2740"]
[BlackElo "2482"]
[TimeControl "180+1"]
[EndTime "9:15:16 PDT"]
[Termination "Sl4werThanYou won by resignation"]

1. e4 {[%clk 0:03:00.9]} 1... e5 {[%clk 0:02:59.7]} 2. Nf3 {[%clk 0:03:00.3]}
2... Nc6 {[%clk 0:02:59.2]} 3. Bb5 {[%clk 0:02:49.6]} 3... a6 {[%clk 0:02:59.2]}
4. Ba4 {[%clk 0:02:44.9]} 4... Nf6 {[%clk 0:02:58.2]} 5. O-O {[%clk 0:02:45.4]}
5... Nxe4 {[%clk 0:02:58]} 6. d4 {[%clk 0:02:34.4]} 6... b5 {[%clk 0:02:57.8]}
7. Bb3 {[%clk 0:02:34.9]} 7... d5 {[%clk 0:02:58.4]} 8. dxe5 {[%clk 0:02:34.6]}
8... Be6 {[%clk 0:02:58.4]} 9. Be3 {[%clk 0:02:28.9]} 9... Be7 {[%clk
0:02:57.8]} 10. Qe2 {[%clk 0:02:29.2]} 10... O-O {[%clk 0:02:55.8]} 11. Rd1
{[%clk 0:02:29.3]} 11... Nc5 {[%clk 0:02:53.9]} 12. Nc3 {[%clk 0:02:29.4]} 12...
Nxb3 {[%clk 0:02:52.2]} 13. cxb3 {[%clk 0:02:30.3]} 13... Qd7 {[%clk 0:02:42.7]}
14. Rac1 {[%clk 0:02:28.7]} 14... Rad8 {[%clk 0:02:38.5]} 15. h3 {[%clk
0:02:28.4]} 15... Nb8 {[%clk 0:02:20.6]} 16. Nb1 {[%clk 0:02:06.1]} 16... a5
{[%clk 0:02:00.4]} 17. Bc5 {[%clk 0:02:05.7]} 17... Bxc5 {[%clk 0:01:56.4]} 18.
Rxc5 {[%clk 0:02:06.6]} 18... c6 {[%clk 0:01:56.9]} 19. Nd4 {[%clk 0:01:55.7]}
19... Rc8 {[%clk 0:01:54.1]} 20. Rdc1 {[%clk 0:01:55.4]} 20... Rfe8 {[%clk
0:01:41.5]} 21. Nd2 {[%clk 0:01:54.6]} 21... Qb7 {[%clk 0:01:25.1]} 22. a4
{[%clk 0:01:40.5]} 22... bxa4 {[%clk 0:01:19.3]} 23. bxa4 {[%clk 0:01:40.3]}
23... Qxb2 {[%clk 0:01:18.1]} 24. N2b3 {[%clk 0:01:37.4]} 24... Bd7 {[%clk
0:01:10.8]} 25. Qxb2 {[%clk 0:01:36.9]} 1-0

[Event "Early-Titled-Tuesday-Blitz-May-28-2024"]
[Site "Chess.com"]
[Date "2024.05.28"]
[Round "7"]
[White "klercaku"]
[Black "Lily_Schirmbeck"]
[Result "0-1"]
[WhiteElo "2271"]
[BlackElo "1845"]
[TimeControl "180+1"]
[EndTime "9:15:38 PDT"]
[Termination "Lily_Schirmbeck won by checkmate"]

1. e4 {[%clk 0:03:00.9]} 1... d5 {[%clk 0:02:55]} 2. exd5 {[%clk 0:03:00.7]}
2... Qxd5 {[%clk 0:02:55.9]} 3. Nc3 {[%clk 0:03:00.8]} 3... Qd6 {[%clk
0:02:56.5]} 4. d4 {[%clk 0:03:01.3]} 4... Nf6 {[%clk 0:02:57.1]} 5. Nf3 {[%clk
0:03:01.8]} 5... a6 {[%clk 0:02:57.7]} 6. Be2 {[%clk 0:03:01.7]} 6... e6 {[%clk
0:02:58.3]} 7. Be3 {[%clk 0:03:01.3]} 7... b5 {[%clk 0:02:58.4]} 8. a3 {[%clk
0:02:59.9]} 8... Bb7 {[%clk 0:02:58.6]} 9. O-O {[%clk 0:03:00.5]} 9... Be7
{[%clk 0:02:59.1]} 10. Ne5 {[%clk 0:02:56]} 10... c5 {[%clk 0:02:57.6]} 11. Bf3
{[%clk 0:02:40.7]} 11... Nd5 {[%clk 0:02:50.3]} 12. Ne4 {[%clk 0:02:19.4]} 12...
Qc7 {[%clk 0:02:43]} 13. Nd3 {[%clk 0:02:03.9]} 13... c4 {[%clk 0:02:34.5]} 14.
Ndc5 {[%clk 0:02:02.4]} 14... Bc6 {[%clk 0:02:24.2]} 15. Qd2 {[%clk 0:01:45.9]}
15... Nd7 {[%clk 0:02:23.9]} 16. Nxd7 {[%clk 0:01:43.8]} 16... Qxd7 {[%clk
0:02:21.2]} 17. Rad1 {[%clk 0:01:38.3]} 17... O-O {[%clk 0:02:19.6]} 18. Nc5
{[%clk 0:01:38.6]} 18... Qc7 {[%clk 0:02:15.5]} 19. c3 {[%clk 0:01:23.9]} 19...
Rfd8 {[%clk 0:02:15.2]} 20. Qe2 {[%clk 0:01:12.4]} 20... Bxc5 {[%clk 0:02:06.2]}
21. dxc5 {[%clk 0:01:09.6]} 21... Nxe3 {[%clk 0:02:06.3]} 22. Bxc6 {[%clk
0:00:35.1]} 22... Nxf1 {[%clk 0:01:56.3]} 23. Bxa8 {[%clk 0:00:31.5]} 23...
Qxh2+ {[%clk 0:01:54.2]} 24. Kxf1 {[%clk 0:00:29.7]} 24... Qh1# {[%clk
0:01:54.5]} 0-1

[Event "Early-Titled-Tuesday-Blitz-May-28-2024"]
[Site "Chess.com"]
[Date "2024.05.28"]
[Round "7"]
[White "HansOnTwitch"]
[Black "Kunalm64"]
[Result "1-0"]
[WhiteElo "3121"]
[BlackElo "2681"]
[TimeControl "180+1"]
[EndTime "9:15:46 PDT"]
[Termination "HansOnTwitch won by resignation"]

1. e4 {[%clk 0:02:55.5]} 1... c6 {[%clk 0:03:00.1]} 2. Nf3 {[%clk 0:02:55.1]}
2... d5 {[%clk 0:03:00.6]} 3. d3 {[%clk 0:02:55.9]} 3... Bg4 {[%clk 0:02:56.9]}
4. h3 {[%clk 0:02:52.9]} 4... Bxf3 {[%clk 0:02:55.3]} 5. Qxf3 {[%clk 0:02:53.8]}
5... e6 {[%clk 0:02:55.8]} 6. Nd2 {[%clk 0:02:53.2]} 6... Nf6 {[%clk 0:02:56]}
7. g3 {[%clk 0:02:49.9]} 7... Nbd7 {[%clk 0:02:55]} 8. Bg2 {[%clk 0:02:49.8]}
8... g6 {[%clk 0:02:54.7]} 9. Qe2 {[%clk 0:02:48.1]} 9... Bg7 {[%clk 0:02:52.5]}
10. e5 {[%clk 0:02:44.6]} 10... Ng8 {[%clk 0:02:52.5]} 11. Nf3 {[%clk
0:02:42.2]} 11... Ne7 {[%clk 0:02:52]} 12. O-O {[%clk 0:02:42]} 12... O-O {[%clk
0:02:51.4]} 13. c3 {[%clk 0:02:41.8]} 13... c5 {[%clk 0:02:48.8]} 14. d4 {[%clk
0:02:41.9]} 14... Nc6 {[%clk 0:02:48.2]} 15. Be3 {[%clk 0:02:41.9]} 15... cxd4
{[%clk 0:02:47.8]} 16. cxd4 {[%clk 0:02:42.8]} 16... Rc8 {[%clk 0:02:47.1]} 17.
h4 {[%clk 0:02:42.8]} 17... Qb6 {[%clk 0:02:45.6]} 18. Rfc1 {[%clk 0:02:42.3]}
18... Qa6 {[%clk 0:02:45.3]} 19. Qxa6 {[%clk 0:02:39.2]} 19... bxa6 {[%clk
0:02:45.4]} 20. Bf1 {[%clk 0:02:40.1]} 20... Ndb8 {[%clk 0:02:44.3]} 21. Rc3
{[%clk 0:02:38.7]} 21... Nb4 {[%clk 0:02:31.1]} 22. Ne1 {[%clk 0:02:32.8]} 22...
a5 {[%clk 0:02:06.7]} 23. Rac1 {[%clk 0:02:28.7]} 23... Rxc3 {[%clk 0:02:04.4]}
24. bxc3 {[%clk 0:02:29.6]} 24... N4c6 {[%clk 0:01:59]} 25. Rb1 {[%clk
0:02:29.8]} 25... f6 {[%clk 0:01:29]} 26. f4 {[%clk 0:02:29.8]} 26... fxe5
{[%clk 0:01:27.1]} 27. fxe5 {[%clk 0:02:30.7]} 27... Rf7 {[%clk 0:01:25.7]} 28.
Bh3 {[%clk 0:02:30]} 28... Re7 {[%clk 0:01:23.9]} 29. Nd3 {[%clk 0:02:30.2]}
29... Nd7 {[%clk 0:01:16.9]} 30. Rb7 {[%clk 0:02:26.5]} 30... Nf8 {[%clk
0:01:16.8]} 31. Rb5 {[%clk 0:02:22.8]} 31... Rc7 {[%clk 0:01:16.2]} 32. Nc5
{[%clk 0:02:20.5]} 32... Kf7 {[%clk 0:01:05]} 33. Rb1 {[%clk 0:02:18.3]} 33...
Nxe5 {[%clk 0:00:58.7]} 34. dxe5 {[%clk 0:02:18.3]} 34... Bxe5 {[%clk
0:00:59.3]} 35. Rf1+ {[%clk 0:02:18.2]} 35... Ke8 {[%clk 0:00:55.8]} 36. Rxf8+
{[%clk 0:02:17.7]} 36... Kxf8 {[%clk 0:00:55.1]} 37. Nxe6+ {[%clk 0:02:18.6]}
37... Ke7 {[%clk 0:00:55.1]} 38. Nxc7 {[%clk 0:02:19.5]} 38... Bxc7 {[%clk
0:00:55.4]} 39. Kf2 {[%clk 0:02:19.9]} 39... Bb6 {[%clk 0:00:50.6]} 40. Bxb6
{[%clk 0:02:19.6]} 40... axb6 {[%clk 0:00:51]} 41. Ke3 {[%clk 0:02:20.5]} 41...
Kd6 {[%clk 0:00:51.2]} 42. Kd4 {[%clk 0:02:20.9]} 1-0

[Event "Early-Titled-Tuesday-Blitz-May-28-2024"]
[Site "Chess.com"]
[Date "2024.05.28"]
[Round "7"]
[White "SharapovEvgeny"]
[Black "AnishOnYoutube"]
[Result "0-1"]
[WhiteElo "2613"]
[BlackElo "3019"]
[TimeControl "180+1"]
[EndTime "9:15:47 PDT"]
[Termination "AnishOnYoutube won by resignation"]

1. e4 {[%clk 0:02:59.8]} 1... c5 {[%clk 0:03:00]} 2. Nf3 {[%clk 0:02:59.5]} 2...
d6 {[%clk 0:03:00.2]} 3. d4 {[%clk 0:02:59.5]} 3... cxd4 {[%clk 0:03:01.1]} 4.
Nxd4 {[%clk 0:02:59.9]} 4... Nf6 {[%clk 0:03:01.5]} 5. f3 {[%clk 0:03:00.4]}
5... e5 {[%clk 0:02:59.9]} 6. Nb3 {[%clk 0:03:00.3]} 6... a5 {[%clk 0:03:00.4]}
7. Bb5+ {[%clk 0:02:59.4]} 7... Nc6 {[%clk 0:02:48.7]} 8. Nc3 {[%clk 0:02:58.6]}
8... Be7 {[%clk 0:02:46.5]} 9. Be3 {[%clk 0:02:57.1]} 9... O-O {[%clk
0:02:46.7]} 10. O-O {[%clk 0:02:56.3]} 10... Be6 {[%clk 0:02:46.9]} 11. Qe2
{[%clk 0:02:55.7]} 11... Na7 {[%clk 0:02:38.9]} 12. Bc4 {[%clk 0:02:44.2]} 12...
Qc7 {[%clk 0:02:09.2]} 13. Bxe6 {[%clk 0:02:41.9]} 13... fxe6 {[%clk 0:02:10.1]}
14. Rfd1 {[%clk 0:02:33.8]} 14... b5 {[%clk 0:02:04]} 15. Nxb5 {[%clk
0:02:26.7]} 15... Nxb5 {[%clk 0:02:03.9]} 16. Qxb5 {[%clk 0:02:26.6]} 16... Rfb8
{[%clk 0:01:50.9]} 17. Qd3 {[%clk 0:02:13]} 17... a4 {[%clk 0:01:49.7]} 18. Nd2
{[%clk 0:02:12.8]} 18... Rxb2 {[%clk 0:01:44.1]} 19. Nc4 {[%clk 0:02:10.8]}
19... Rb4 {[%clk 0:01:42]} 20. Nd2 {[%clk 0:01:49.8]} 20... d5 {[%clk
0:01:39.8]} 21. c3 {[%clk 0:01:43.5]} 21... Rb2 {[%clk 0:01:39.2]} 22. Rdb1
{[%clk 0:01:38.1]} 22... a3 {[%clk 0:01:35.6]} 23. Nb3 {[%clk 0:01:31.5]} 23...
dxe4 {[%clk 0:01:34.4]} 24. fxe4 {[%clk 0:01:31.1]} 24... Ng4 {[%clk 0:01:35]}
25. Kh1 {[%clk 0:01:10.9]} 25... Rd8 {[%clk 0:01:28]} 0-1

[Event "Early-Titled-Tuesday-Blitz-May-28-2024"]
[Site "Chess.com"]
[Date "2024.05.28"]
[Round "7"]
[White "ural58"]
[Black "Chernov_Mikhail"]
[Result "1-0"]
[WhiteElo "2441"]
[BlackElo "2306"]
[TimeControl "180+1"]
[EndTime "9:15:53 PDT"]
[Termination "ural58 won by resignation"]

1. e4 {[%clk 0:02:58.5]} 1... e5 {[%clk 0:02:59.8]} 2. Nf3 {[%clk 0:02:55.8]}
2... Nf6 {[%clk 0:03:00]} 3. d4 {[%clk 0:02:53.7]} 3... Nxe4 {[%clk 0:02:59.8]}
4. Bd3 {[%clk 0:02:53.6]} 4... d5 {[%clk 0:02:59.6]} 5. Nxe5 {[%clk 0:02:53.2]}
5... Bd6 {[%clk 0:02:57.1]} 6. Nc3 {[%clk 0:02:52.2]} 6... Nxc3 {[%clk
0:02:55.6]} 7. bxc3 {[%clk 0:02:52.1]} 7... Bxe5 {[%clk 0:02:50]} 8. dxe5 {[%clk
0:02:51.6]} 8... O-O {[%clk 0:02:45.1]} 9. O-O {[%clk 0:02:48.9]} 9... Qh4
{[%clk 0:02:36]} 10. Re1 {[%clk 0:02:44.8]} 10... Nc6 {[%clk 0:02:34.7]} 11. g3
{[%clk 0:02:37.7]} 11... Qg4 {[%clk 0:02:26.4]} 12. f3 {[%clk 0:02:30.8]} 12...
Qh5 {[%clk 0:02:23.2]} 13. Qe2 {[%clk 0:02:16.7]} 13... Be6 {[%clk 0:02:15.1]}
14. h4 {[%clk 0:02:11.3]} 14... Rae8 {[%clk 0:01:43.8]} 15. Bg5 {[%clk
0:02:09.5]} 15... Nxe5 {[%clk 0:01:16.1]} 16. g4 {[%clk 0:01:46.8]} 16... Nxg4
{[%clk 0:00:34.5]} 17. fxg4 {[%clk 0:01:46]} 17... Qxg4+ {[%clk 0:00:28.9]} 18.
Qxg4 {[%clk 0:01:45.7]} 18... Bxg4 {[%clk 0:00:29.8]} 19. Be7 {[%clk 0:01:43.8]}
19... c6 {[%clk 0:00:23.2]} 20. Bxf8 {[%clk 0:01:43]} 20... Kxf8 {[%clk
0:00:24.1]} 21. Rxe8+ {[%clk 0:01:41.8]} 1-0